[Event "Titled Tuesday Blitz February 14 Late 2023"]
[White "Livaic, Leon"]
[Black "Perez Ponsa, Federico"]
[WhiteFideId "14531534"]
[BlackFideId "117927"]
[WhiteElo "2579"]
[BlackElo "2532"]
[Result "1-0"]
[Round "06"]
[TimeControl "180+2"]
[Date "2023.02.14"]
[WhiteClock "0:00:08"]
[BlackClock "0:00:02"]

1. d4 {[%clk 0:03:00]}  d5 {[%clk 0:03:00]} 2. c4 {[%clk 0:03:01]}  e6 {[%clk 0:03:00]} 3. Nc3 {[%clk 0:03:01]}  a6 {[%clk 0:03:01]} 4. cxd5 {[%clk 0:03:00]}  exd5 {[%clk 0:03:02]} 5. Nf3 {[%clk 0:03:00]}  Nf6 {[%clk 0:03:02]} 6. Bg5 {[%clk 0:03:01]}  Be6 {[%clk 0:03:02]} 7. Bxf6 {[%clk 0:03:01]}  Qxf6 {[%clk 0:03:02]} 8. Qb3 {[%clk 0:03:02]}  Ra7 {[%clk 0:03:02]} 9. g3 {[%clk 0:03:01]}  Qd8 {[%clk 0:03:00]} 10. h4 {[%clk 0:03:01]}  Nd7 {[%clk 0:02:55]} 11. Ng5 {[%clk 0:02:41]}  Nf6 {[%clk 0:02:49]} 12. Nxe6 {[%clk 0:02:35]}  fxe6 {[%clk 0:02:49]} 13. Bh3 {[%clk 0:02:35]}  Qd6 {[%clk 0:02:49]} 14. e3 {[%clk 0:02:17]}  e5 {[%clk 0:02:42]} 15. dxe5 {[%clk 0:02:11]}  Qxe5 {[%clk 0:02:43]} 16. O-O-O {[%clk 0:02:12]}  c6 {[%clk 0:01:30]} 17. e4 {[%clk 0:02:12]}  d4 {[%clk 0:01:27]} 18. f4 {[%clk 0:02:12]}  Qc5 {[%clk 0:01:19]} 19. Kb1 {[%clk 0:02:12]}  Qb4 {[%clk 0:01:11]} 20. Qxb4 {[%clk 0:02:06]}  Bxb4 {[%clk 0:01:09]} 21. Rxd4 {[%clk 0:02:07]}  c5 {[%clk 0:01:09]} 22. Rd6 {[%clk 0:02:03]}  b5 {[%clk 0:01:08]} 23. e5 {[%clk 0:02:00]}  Bxc3 {[%clk 0:01:06]} 24. bxc3 {[%clk 0:02:00]}  Ne4 {[%clk 0:01:06]} 25. Rc6 {[%clk 0:01:51]}  Ke7 {[%clk 0:00:56]} 26. Kc2 {[%clk 0:01:20]}  Rd8 {[%clk 0:00:54]} 27. Re1 {[%clk 0:01:12]}  Rd2+ {[%clk 0:00:43]} 28. Kc1 {[%clk 0:01:12]}  Rh2 {[%clk 0:00:40]} 29. Rxe4 {[%clk 0:01:06]}  Rxh3 {[%clk 0:00:40]} 30. Rxc5 {[%clk 0:00:57]}  Rxg3 {[%clk 0:00:40]} 31. f5 {[%clk 0:00:55]}  Rf3 {[%clk 0:00:37]} 32. e6 {[%clk 0:00:51]}  g6 {[%clk 0:00:32]} 33. fxg6 {[%clk 0:00:51]}  hxg6 {[%clk 0:00:33]} 34. h5 {[%clk 0:00:45]}  Rf5 {[%clk 0:00:30]} 35. Rxf5 {[%clk 0:00:12]}  gxf5 {[%clk 0:00:31]} 36. Re1 {[%clk 0:00:12]}  Ra8 {[%clk 0:00:31]} 37. Kd2 {[%clk 0:00:08]}  Rh8 {[%clk 0:00:32]} 38. Rh1 {[%clk 0:00:09]}  Kxe6 {[%clk 0:00:32]} 39. Ke3 {[%clk 0:00:09]}  Ke5 {[%clk 0:00:27]} 40. h6 {[%clk 0:00:09]}  f4+ {[%clk 0:00:21]} 41. Kf3 {[%clk 0:00:09]}  Kf5 {[%clk 0:00:21]} 42. h7 {[%clk 0:00:09]}  Kg6 {[%clk 0:00:17]} 43. Kxf4 {[%clk 0:00:08]}  Kg7 {[%clk 0:00:17]} 44. Kg5 {[%clk 0:00:06]}  a5 {[%clk 0:00:15]} 45. a3 {[%clk 0:00:06]}  Kf7 {[%clk 0:00:02]} 46. Kh6 {[%clk 0:00:06]}  Ke6 {[%clk 0:00:01]} 47. Kg7 {[%clk 0:00:05]}  Rc8 {[%clk 0:00:01]} 48. h8=Q {[%clk 0:00:06]}  Rxh8 {[%clk 0:00:02]} 49. Kxh8 {[%clk 0:00:07]}  Kd5 {[%clk 0:00:03]} 50. Rh4 {[%clk 0:00:07]}  Kc5 {[%clk 0:00:02]} 51. Kg7 {[%clk 0:00:08]} 1-0


[Site "https://www.chess.com"]

[Event "Titled Tuesday Blitz February 14 Late 2023"]
[White "Melkumyan, Hrant"]
[Black "Bluebaum, Matthias"]
[WhiteFideId "13302485"]
[BlackFideId "24651516"]
[WhiteElo "2645"]
[BlackElo "2669"]
[Result "0-1"]
[Round "06"]
[TimeControl "180+2"]
[Date "2023.02.14"]
[WhiteClock "0:00:05"]
[BlackClock "0:00:10"]

1. d4 {[%clk 0:03:00]}  d5 {[%clk 0:03:00]} 2. Bf4 {[%clk 0:03:00]}  c5 {[%clk 0:02:59]} 3. e3 {[%clk 0:03:00]}  Nc6 {[%clk 0:02:59]} 4. Nf3 {[%clk 0:02:57]}  e6 {[%clk 0:03:00]} 5. Nbd2 {[%clk 0:02:56]}  Bd6 {[%clk 0:03:00]} 6. dxc5 {[%clk 0:02:55]}  Bxf4 {[%clk 0:03:00]} 7. exf4 {[%clk 0:02:55]}  Qf6 {[%clk 0:02:59]} 8. Bb5 {[%clk 0:02:42]}  Qxf4 {[%clk 0:02:57]} 9. O-O {[%clk 0:02:39]}  Nf6 {[%clk 0:02:52]} 10. c4 {[%clk 0:02:30]}  O-O {[%clk 0:02:49]} 11. cxd5 {[%clk 0:02:30]}  exd5 {[%clk 0:02:43]} 12. Bd3 {[%clk 0:02:15]}  Qb4 {[%clk 0:02:26]} 13. Qc1 {[%clk 0:02:14]}  Nd7 {[%clk 0:02:06]} 14. Qc2 {[%clk 0:02:10]}  h6 {[%clk 0:01:49]} 15. Rac1 {[%clk 0:02:05]}  Nde5 {[%clk 0:01:44]} 16. a3 {[%clk 0:01:59]}  Qf4 {[%clk 0:01:42]} 17. Rfe1 {[%clk 0:01:51]}  Bg4 {[%clk 0:01:40]} 18. Nxe5 {[%clk 0:01:37]}  Nxe5 {[%clk 0:01:41]} 19. Nf1 {[%clk 0:01:35]}  Rac8 {[%clk 0:01:37]} 20. b4 {[%clk 0:01:32]}  b6 {[%clk 0:01:36]} 21. Ne3 {[%clk 0:01:32]}  Rfd8 {[%clk 0:01:31]} 22. Bf5 {[%clk 0:01:23]}  Bxf5 {[%clk 0:01:14]} 23. Qxf5 {[%clk 0:01:13]}  Ng6 {[%clk 0:01:01]} 24. g3 {[%clk 0:00:58]}  Qxf5 {[%clk 0:00:40]} 25. Nxf5 {[%clk 0:00:59]}  bxc5 {[%clk 0:00:41]} 26. bxc5 {[%clk 0:00:59]}  d4 {[%clk 0:00:41]} 27. Red1 {[%clk 0:00:54]}  Rd5 {[%clk 0:00:34]} 28. Ne3 {[%clk 0:00:38]}  Rdxc5 {[%clk 0:00:31]} 29. Rxc5 {[%clk 0:00:39]}  Rxc5 {[%clk 0:00:32]} 30. Rxd4 {[%clk 0:00:40]}  Ra5 {[%clk 0:00:30]} 31. a4 {[%clk 0:00:36]}  Ne5 {[%clk 0:00:28]} 32. Kg2 {[%clk 0:00:37]}  Nc6 {[%clk 0:00:24]} 33. Rc4 {[%clk 0:00:36]}  Ne5 {[%clk 0:00:25]} 34. Rd4 {[%clk 0:00:32]}  Nc6 {[%clk 0:00:25]} 35. Re4 {[%clk 0:00:33]}  Kf8 {[%clk 0:00:21]} 36. h4 {[%clk 0:00:30]}  h5 {[%clk 0:00:21]} 37. Nd1 {[%clk 0:00:26]}  Rc5 {[%clk 0:00:19]} 38. Nb2 {[%clk 0:00:21]}  g6 {[%clk 0:00:19]} 39. Nd3 {[%clk 0:00:21]}  Rd5 {[%clk 0:00:20]} 40. Rc4 {[%clk 0:00:17]}  Na5 {[%clk 0:00:16]} 41. Rc8+ {[%clk 0:00:17]}  Kg7 {[%clk 0:00:17]} 42. Nf4 {[%clk 0:00:16]}  Rd7 {[%clk 0:00:17]} 43. Rc5 {[%clk 0:00:15]}  Nb3 {[%clk 0:00:18]} 44. Rb5 {[%clk 0:00:15]}  Nd4 {[%clk 0:00:18]} 45. Rb4 {[%clk 0:00:16]}  Nc6 {[%clk 0:00:18]} 46. Rc4 {[%clk 0:00:16]}  Ne5 {[%clk 0:00:17]} 47. Rc5 {[%clk 0:00:17]}  Ng4 {[%clk 0:00:17]} 48. Ra5 {[%clk 0:00:13]}  Rd2 {[%clk 0:00:16]} 49. Nh3 {[%clk 0:00:13]}  Rd7 {[%clk 0:00:13]} 50. Rb5 {[%clk 0:00:13]}  Nf6 {[%clk 0:00:12]} 51. Ng5 {[%clk 0:00:12]}  Nd5 {[%clk 0:00:12]} 52. a5 {[%clk 0:00:12]}  Nc3 {[%clk 0:00:11]} 53. Rc5 {[%clk 0:00:12]}  Nd5 {[%clk 0:00:11]} 54. a6 {[%clk 0:00:12]}  Nb4 {[%clk 0:00:12]} 55. Ra5 {[%clk 0:00:08]}  Nc6 {[%clk 0:00:04]} 56. Rb5 {[%clk 0:00:08]}  Rc7 {[%clk 0:00:03]} 57. Ne4 {[%clk 0:00:07]}  Kf8 {[%clk 0:00:02]} 58. Nc5 {[%clk 0:00:03]}  Ke7 {[%clk 0:00:03]} 59. Nd3 {[%clk 0:00:03]}  Kd6 {[%clk 0:00:03]} 60. Nf4 {[%clk 0:00:04]}  Ne7 {[%clk 0:00:04]} 61. Rb8 {[%clk 0:00:03]}  Rc6 {[%clk 0:00:04]} 62. Rd8+ {[%clk 0:00:02]}  Kc7 {[%clk 0:00:04]} 63. Rf8 {[%clk 0:00:03]}  Rxa6 {[%clk 0:00:03]} 64. Rxf7 {[%clk 0:00:03]}  Kd8 {[%clk 0:00:03]} 65. Rg7 {[%clk 0:00:03]}  Rb6 {[%clk 0:00:04]} 66. Rh7 {[%clk 0:00:02]}  Rd6 {[%clk 0:00:04]} 67. Rh8+ {[%clk 0:00:03]}  Kd7 {[%clk 0:00:04]} 68. Ra8 {[%clk 0:00:03]}  a6 {[%clk 0:00:05]} 69. Ra7+ {[%clk 0:00:03]}  Ke8 {[%clk 0:00:06]} 70. Nh3 {[%clk 0:00:01]}  Rb6 {[%clk 0:00:03]} 71. Ng5 {[%clk 0:00:02]}  Nc6 {[%clk 0:00:04]} 72. Ra8+ {[%clk 0:00:01]}  Kd7 {[%clk 0:00:04]} 73. Ne4 {[%clk 0:00:02]}  Kc7 {[%clk 0:00:05]} 74. Nc5 {[%clk 0:00:02]}  Nb8 {[%clk 0:00:04]} 75. Ra7+ {[%clk 0:00:02]}  Kc6 {[%clk 0:00:05]} 76. Nd3 {[%clk 0:00:03]}  Kb5 {[%clk 0:00:04]} 77. Rc7 {[%clk 0:00:02]}  Nc6 {[%clk 0:00:04]} 78. Nf4 {[%clk 0:00:01]}  a5 {[%clk 0:00:05]} 79. Rc8 {[%clk 0:00:01]}  Rb8 {[%clk 0:00:04]} 80. Rxb8+ {[%clk 0:00:01]}  Nxb8 {[%clk 0:00:05]} 81. Kf1 {[%clk 0:00:02]}  a4 {[%clk 0:00:06]} 82. Ne2 {[%clk 0:00:02]}  a3 {[%clk 0:00:07]} 83. Ke1 {[%clk 0:00:02]}  Kc4 {[%clk 0:00:06]} 84. Kd2 {[%clk 0:00:02]}  a2 {[%clk 0:00:07]} 85. Nf4 {[%clk 0:00:02]}  a1=Q {[%clk 0:00:07]} 86. Ke3 {[%clk 0:00:03]}  Qc3+ {[%clk 0:00:08]} 87. Ke2 {[%clk 0:00:03]}  Nc6 {[%clk 0:00:08]} 88. Nxg6 {[%clk 0:00:03]}  Nd4+ {[%clk 0:00:08]} 89. Kf1 {[%clk 0:00:04]}  Qd3+ {[%clk 0:00:09]} 90. Kg2 {[%clk 0:00:05]}  Qxg6 {[%clk 0:00:10]} 0-1


[Site "https://www.chess.com"]

[Event "Titled Tuesday Blitz February 14 Late 2023"]
[White "Madaminov, Mukhiddin"]
[Black "Hakobyan, Aram"]
[WhiteFideId "14210703"]
[BlackFideId "13306677"]
[WhiteElo "2422"]
[BlackElo "2608"]
[Result "0-1"]
[Round "06"]
[TimeControl "180+2"]
[Date "2023.02.14"]
[WhiteClock "0:00:04"]
[BlackClock "0:00:39"]

1. d4 {[%clk 0:03:00]}  g6 {[%clk 0:02:59]} 2. Nc3 {[%clk 0:02:58]}  d5 {[%clk 0:02:57]} 3. Bf4 {[%clk 0:02:56]}  Nf6 {[%clk 0:02:57]} 4. Qd2 {[%clk 0:02:56]}  Bf5 {[%clk 0:02:52]} 5. Nf3 {[%clk 0:02:47]}  c6 {[%clk 0:02:48]} 6. Ne5 {[%clk 0:02:47]}  Nbd7 {[%clk 0:02:47]} 7. f3 {[%clk 0:02:48]}  h5 {[%clk 0:02:43]} 8. O-O-O {[%clk 0:02:47]}  Bg7 {[%clk 0:02:40]} 9. Qe1 {[%clk 0:02:37]}  O-O {[%clk 0:02:20]} 10. e4 {[%clk 0:02:35]}  dxe4 {[%clk 0:02:12]} 11. fxe4 {[%clk 0:02:32]}  Be6 {[%clk 0:02:13]} 12. h3 {[%clk 0:02:26]}  Qa5 {[%clk 0:02:12]} 13. a3 {[%clk 0:02:16]}  Nxe5 {[%clk 0:02:08]} 14. Bxe5 {[%clk 0:02:15]}  Rfd8 {[%clk 0:02:01]} 15. Be2 {[%clk 0:01:55]}  b5 {[%clk 0:01:55]} 16. g4 {[%clk 0:01:51]}  b4 {[%clk 0:01:54]} 17. axb4 {[%clk 0:01:41]}  Qxb4 {[%clk 0:01:46]} 18. g5 {[%clk 0:01:36]}  Rab8 {[%clk 0:01:38]} 19. Bxb8 {[%clk 0:00:52]}  Rxb8 {[%clk 0:01:39]} 20. Qg3 {[%clk 0:00:50]}  Qxb2+ {[%clk 0:01:26]} 21. Kd2 {[%clk 0:00:51]}  Qxc3+ {[%clk 0:01:27]} 22. Qxc3 {[%clk 0:00:41]}  Nxe4+ {[%clk 0:01:27]} 23. Kd3 {[%clk 0:00:41]}  Nxc3 {[%clk 0:01:28]} 24. Kxc3 {[%clk 0:00:42]}  c5 {[%clk 0:01:26]} 25. Rb1 {[%clk 0:00:33]}  Rd8 {[%clk 0:01:15]} 26. Kd2 {[%clk 0:00:23]}  Bxd4 {[%clk 0:01:12]} 27. h4 {[%clk 0:00:24]}  c4 {[%clk 0:01:04]} 28. Bf3 {[%clk 0:00:21]}  c3+ {[%clk 0:00:59]} 29. Ke1 {[%clk 0:00:17]}  Bf5 {[%clk 0:00:57]} 30. Ke2 {[%clk 0:00:03]}  Bxc2 {[%clk 0:00:50]} 31. Rbc1 {[%clk 0:00:04]}  Bb3 {[%clk 0:00:46]} 32. Be4 {[%clk 0:00:05]}  a5 {[%clk 0:00:44]} 33. Bc2 {[%clk 0:00:04]}  a4 {[%clk 0:00:42]} 34. Rhd1 {[%clk 0:00:04]}  e5 {[%clk 0:00:42]} 35. Bxb3 {[%clk 0:00:04]}  axb3 {[%clk 0:00:43]} 36. Rxc3 {[%clk 0:00:04]}  Rb8 {[%clk 0:00:39]} 37. Rcc1 {[%clk 0:00:03]}  b2 {[%clk 0:00:39]} 38. Ra1 {[%clk 0:00:04]}  bxa1=Q {[%clk 0:00:39]} 0-1


[Site "https://www.chess.com"]

[Event "Titled Tuesday Blitz February 14 Late 2023"]
[White "Andreikin, Dmitry"]
[Black "Makridis, Dimitrios"]
[WhiteFideId "4158814"]
[BlackFideId "25864475"]
[WhiteElo "2729"]
[BlackElo "2356"]
[Result "1-0"]
[Round "06"]
[TimeControl "180+2"]
[Date "2023.02.14"]
[WhiteClock "0:00:18"]
[BlackClock "0:00:02"]

1. c4 {[%clk 0:03:00]}  c5 {[%clk 0:02:50]} 2. Nf3 {[%clk 0:02:59]}  Nf6 {[%clk 0:02:51]} 3. g3 {[%clk 0:02:57]}  Nc6 {[%clk 0:02:47]} 4. Bg2 {[%clk 0:02:57]}  g6 {[%clk 0:02:47]} 5. d4 {[%clk 0:02:56]}  cxd4 {[%clk 0:02:46]} 6. Nxd4 {[%clk 0:02:57]}  Bg7 {[%clk 0:02:47]} 7. Nc2 {[%clk 0:02:56]}  O-O {[%clk 0:02:46]} 8. Nc3 {[%clk 0:02:55]}  d6 {[%clk 0:02:37]} 9. O-O {[%clk 0:02:55]}  Be6 {[%clk 0:02:38]} 10. b3 {[%clk 0:02:55]}  Rc8 {[%clk 0:02:37]} 11. Bb2 {[%clk 0:02:54]}  Ne5 {[%clk 0:02:35]} 12. Nd4 {[%clk 0:02:52]}  Bd7 {[%clk 0:02:34]} 13. Rc1 {[%clk 0:02:47]}  Nc6 {[%clk 0:02:28]} 14. Qd2 {[%clk 0:02:42]}  Nxd4 {[%clk 0:02:23]} 15. Qxd4 {[%clk 0:02:43]}  Bc6 {[%clk 0:02:21]} 16. Qxa7 {[%clk 0:02:39]}  Ng4 {[%clk 0:02:13]} 17. Bxc6 {[%clk 0:02:33]}  bxc6 {[%clk 0:02:14]} 18. h3 {[%clk 0:02:26]}  Ra8 {[%clk 0:02:11]} 19. Qb7 {[%clk 0:02:25]}  Ne5 {[%clk 0:02:12]} 20. Rfd1 {[%clk 0:02:19]}  Nxc4 {[%clk 0:02:05]} 21. bxc4 {[%clk 0:02:14]}  Rb8 {[%clk 0:02:05]} 22. Qxc6 {[%clk 0:02:14]}  Rxb2 {[%clk 0:02:05]} 23. c5 {[%clk 0:02:12]}  Qc8 {[%clk 0:01:32]} 24. Nd5 {[%clk 0:01:47]}  Qe6 {[%clk 0:00:53]} 25. cxd6 {[%clk 0:01:41]}  exd6 {[%clk 0:00:54]} 26. Nf4 {[%clk 0:01:39]}  Qxa2 {[%clk 0:00:52]} 27. Qd5 {[%clk 0:01:26]}  Be5 {[%clk 0:00:47]} 28. Qxa2 {[%clk 0:01:24]}  Rxa2 {[%clk 0:00:47]} 29. e3 {[%clk 0:01:24]}  Rb8 {[%clk 0:00:33]} 30. Nd3 {[%clk 0:01:20]}  Kg7 {[%clk 0:00:33]} 31. Kg2 {[%clk 0:01:18]}  Rb7 {[%clk 0:00:32]} 32. Kf3 {[%clk 0:01:18]}  h5 {[%clk 0:00:31]} 33. g4 {[%clk 0:01:17]}  hxg4+ {[%clk 0:00:31]} 34. hxg4 {[%clk 0:01:18]}  Bf6 {[%clk 0:00:29]} 35. Rc8 {[%clk 0:01:18]}  Rba7 {[%clk 0:00:20]} 36. Rh1 {[%clk 0:01:17]}  Ra8 {[%clk 0:00:20]} 37. Rc6 {[%clk 0:01:16]}  d5 {[%clk 0:00:20]} 38. Nf4 {[%clk 0:01:10]}  d4 {[%clk 0:00:20]} 39. Nd5 {[%clk 0:01:10]}  Be5 {[%clk 0:00:18]} 40. g5 {[%clk 0:00:52]}  dxe3 {[%clk 0:00:17]} 41. fxe3 {[%clk 0:00:51]}  R2a5 {[%clk 0:00:13]} 42. Nf6 {[%clk 0:00:38]}  Bxf6 {[%clk 0:00:13]} 43. gxf6+ {[%clk 0:00:39]}  Kg8 {[%clk 0:00:13]} 44. e4 {[%clk 0:00:38]}  Re8 {[%clk 0:00:11]} 45. Kf4 {[%clk 0:00:27]}  Rae5 {[%clk 0:00:09]} 46. Re1 {[%clk 0:00:25]}  R5e6 {[%clk 0:00:09]} 47. Rxe6 {[%clk 0:00:25]}  Rxe6 {[%clk 0:00:09]} 48. e5 {[%clk 0:00:25]}  Re8 {[%clk 0:00:08]} 49. Kg5 {[%clk 0:00:23]}  Kf8 {[%clk 0:00:09]} 50. Kh6 {[%clk 0:00:20]}  Kg8 {[%clk 0:00:08]} 51. Rc1 {[%clk 0:00:20]}  Kf8 {[%clk 0:00:05]} 52. Rc5 {[%clk 0:00:20]}  Kg8 {[%clk 0:00:04]} 53. e6 {[%clk 0:00:19]}  fxe6 {[%clk 0:00:04]} 54. Kxg6 {[%clk 0:00:19]}  Rf8 {[%clk 0:00:03]} 55. Rc7 {[%clk 0:00:18]}  Rd8 {[%clk 0:00:01]} 56. Rg7+ {[%clk 0:00:17]}  Kf8 {[%clk 0:00:02]} 57. Rh7 {[%clk 0:00:18]} 1-0


[Site "https://www.chess.com"]

[Event "Titled Tuesday Blitz February 14 Late 2023"]
[White "Chigaev, Maksim"]
[Black "Fernandez Guillen, Ernesto J."]
[WhiteFideId "4108116"]
[BlackFideId "3512428"]
[WhiteElo "2628"]
[BlackElo "2477"]
[Result "0-1"]
[Round "06"]
[TimeControl "180+2"]
[Date "2023.02.14"]
[WhiteClock "0:00:07"]
[BlackClock "0:00:12"]

1. e4 {[%clk 0:03:00]}  e5 {[%clk 0:02:55]} 2. Nf3 {[%clk 0:03:00]}  Nc6 {[%clk 0:02:54]} 3. Bc4 {[%clk 0:03:00]}  g6 {[%clk 0:02:52]} 4. d4 {[%clk 0:02:51]}  exd4 {[%clk 0:02:52]} 5. Nxd4 {[%clk 0:02:51]}  Bg7 {[%clk 0:02:51]} 6. Nxc6 {[%clk 0:02:50]}  bxc6 {[%clk 0:02:52]} 7. O-O {[%clk 0:02:50]}  Ne7 {[%clk 0:02:52]} 8. Nc3 {[%clk 0:02:50]}  O-O {[%clk 0:02:52]} 9. Be3 {[%clk 0:02:49]}  d6 {[%clk 0:02:51]} 10. Bd4 {[%clk 0:02:45]}  Be6 {[%clk 0:02:44]} 11. Bxg7 {[%clk 0:02:35]}  Kxg7 {[%clk 0:02:45]} 12. Re1 {[%clk 0:02:11]}  Bxc4 {[%clk 0:02:33]} 13. Qd4+ {[%clk 0:02:11]}  Kg8 {[%clk 0:02:05]} 14. Qxc4 {[%clk 0:02:11]}  Qc8 {[%clk 0:02:04]} 15. Rad1 {[%clk 0:02:07]}  Qe6 {[%clk 0:02:03]} 16. Qd4 {[%clk 0:02:00]}  c5 {[%clk 0:02:01]} 17. Qd2 {[%clk 0:01:58]}  Rab8 {[%clk 0:01:59]} 18. b3 {[%clk 0:01:57]}  Rfe8 {[%clk 0:01:52]} 19. h3 {[%clk 0:01:55]}  Kg7 {[%clk 0:01:49]} 20. Qd3 {[%clk 0:01:49]}  Rb4 {[%clk 0:01:31]} 21. Qa6 {[%clk 0:01:34]}  Ra8 {[%clk 0:01:18]} 22. Qa5 {[%clk 0:01:23]}  Qc8 {[%clk 0:01:03]} 23. Qa3 {[%clk 0:01:13]}  Qe6 {[%clk 0:00:55]} 24. Qc1 {[%clk 0:01:01]}  a5 {[%clk 0:00:46]} 25. e5 {[%clk 0:00:50]}  d5 {[%clk 0:00:42]} 26. Na4 {[%clk 0:00:50]}  Qc6 {[%clk 0:00:31]} 27. e6 {[%clk 0:00:33]}  f6 {[%clk 0:00:31]} 28. c3 {[%clk 0:00:29]}  Rxa4 {[%clk 0:00:24]} 29. bxa4 {[%clk 0:00:29]}  Qxa4 {[%clk 0:00:25]} 30. h4 {[%clk 0:00:24]}  h5 {[%clk 0:00:24]} 31. Qe3 {[%clk 0:00:21]}  Qc6 {[%clk 0:00:25]} 32. Qf4 {[%clk 0:00:17]}  Rd8 {[%clk 0:00:24]} 33. a4 {[%clk 0:00:15]}  Qd6 {[%clk 0:00:20]} 34. Qd2 {[%clk 0:00:10]}  Nf5 {[%clk 0:00:16]} 35. c4 {[%clk 0:00:07]}  d4 {[%clk 0:00:14]} 36. Qxa5 {[%clk 0:00:07]}  Re8 {[%clk 0:00:13]} 37. g3 {[%clk 0:00:06]}  Nxg3 {[%clk 0:00:13]} 38. Qb5 {[%clk 0:00:05]}  Re7 {[%clk 0:00:12]} 39. Qb7 {[%clk 0:00:03]}  Nf5 {[%clk 0:00:12]} 40. Qd5 {[%clk 0:00:04]}  Qf4 {[%clk 0:00:12]} 41. Qxc5 {[%clk 0:00:05]}  Qg4+ {[%clk 0:00:12]} 42. Kf1 {[%clk 0:00:05]}  Qh3+ {[%clk 0:00:13]} 43. Ke2 {[%clk 0:00:06]}  Rxe6+ {[%clk 0:00:12]} 44. Kd2 {[%clk 0:00:07]}  Qc3# {[%clk 0:00:12]} 0-1


[Site "https://www.chess.com"]

[Event "Titled Tuesday Blitz February 14 Late 2023"]
[White "Zhigalko, Sergei"]
[Black "Nasuta, Grzegorz"]
[WhiteFideId "13502956"]
[BlackFideId "1141686"]
[WhiteElo "2572"]
[BlackElo "2552"]
[Result "1-0"]
[Round "06"]
[TimeControl "180+2"]
[Date "2023.02.14"]
[WhiteClock "0:00:49"]
[BlackClock "0:00:14"]

1. e4 {[%clk 0:03:00]}  c5 {[%clk 0:03:00]} 2. Nf3 {[%clk 0:03:01]}  d6 {[%clk 0:03:01]} 3. d4 {[%clk 0:03:01]}  cxd4 {[%clk 0:03:01]} 4. Qxd4 {[%clk 0:03:02]}  Nc6 {[%clk 0:03:02]} 5. Bb5 {[%clk 0:03:02]}  Bd7 {[%clk 0:03:02]} 6. Bxc6 {[%clk 0:03:02]}  Bxc6 {[%clk 0:03:03]} 7. Nc3 {[%clk 0:03:03]}  Nf6 {[%clk 0:03:04]} 8. Bg5 {[%clk 0:03:03]}  e6 {[%clk 0:03:04]} 9. O-O-O {[%clk 0:03:04]}  Be7 {[%clk 0:03:05]} 10. Rhe1 {[%clk 0:03:05]}  O-O {[%clk 0:02:53]} 11. Kb1 {[%clk 0:03:05]}  h6 {[%clk 0:02:53]} 12. Bh4 {[%clk 0:03:05]}  b5 {[%clk 0:02:47]} 13. Bxf6 {[%clk 0:03:04]}  Bxf6 {[%clk 0:02:47]} 14. Qxd6 {[%clk 0:03:05]}  Qb6 {[%clk 0:02:46]} 15. Ne5 {[%clk 0:03:05]}  Bxe5 {[%clk 0:02:42]} 16. Qxe5 {[%clk 0:03:06]}  Qxf2 {[%clk 0:02:27]} 17. Nxb5 {[%clk 0:02:59]}  Bxb5 {[%clk 0:02:16]} 18. Qxb5 {[%clk 0:03:00]}  Qxg2 {[%clk 0:02:16]} 19. Qe5 {[%clk 0:02:47]}  Rac8 {[%clk 0:02:04]} 20. Rc1 {[%clk 0:02:09]}  Qf2 {[%clk 0:01:21]} 21. Rf1 {[%clk 0:01:32]}  Qc5 {[%clk 0:01:19]} 22. Qg3 {[%clk 0:01:32]}  Qd4 {[%clk 0:01:13]} 23. Rg1 {[%clk 0:01:17]}  Rc5 {[%clk 0:01:08]} 24. Qf4 {[%clk 0:01:12]}  Qe5 {[%clk 0:01:00]} 25. Qxh6 {[%clk 0:01:11]}  Rb8 {[%clk 0:01:00]} 26. b3 {[%clk 0:01:07]}  a5 {[%clk 0:00:53]} 27. Rg2 {[%clk 0:01:00]}  Rc3 {[%clk 0:00:14]} 28. Rcg1 {[%clk 0:00:49]} 1-0


[Site "https://www.chess.com"]

[Event "Titled Tuesday Blitz February 14 Late 2023"]
[White "Makarian, Rudik"]
[Black "Barp, Alberto"]
[WhiteFideId "44105681"]
[BlackFideId "872555"]
[WhiteElo "2545"]
[BlackElo "2432"]
[Result "0-1"]
[Round "06"]
[TimeControl "180+2"]
[Date "2023.02.14"]
[WhiteClock "0:00:09"]
[BlackClock "0:00:18"]

1. d4 {[%clk 0:02:59]}  Nf6 {[%clk 0:03:00]} 2. c4 {[%clk 0:02:58]}  e6 {[%clk 0:03:00]} 3. Nf3 {[%clk 0:02:59]}  b6 {[%clk 0:02:56]} 4. g3 {[%clk 0:02:59]}  Ba6 {[%clk 0:02:56]} 5. b3 {[%clk 0:02:57]}  Bb4+ {[%clk 0:02:54]} 6. Bd2 {[%clk 0:02:56]}  Be7 {[%clk 0:02:55]} 7. Bg2 {[%clk 0:02:56]}  d5 {[%clk 0:02:55]} 8. cxd5 {[%clk 0:02:56]}  exd5 {[%clk 0:02:56]} 9. O-O {[%clk 0:02:57]}  O-O {[%clk 0:02:56]} 10. Nc3 {[%clk 0:02:57]}  Re8 {[%clk 0:02:54]} 11. Bf4 {[%clk 0:02:55]}  Bb4 {[%clk 0:02:41]} 12. Qc2 {[%clk 0:02:48]}  c5 {[%clk 0:02:32]} 13. Rfc1 {[%clk 0:01:54]}  Nc6 {[%clk 0:02:24]} 14. e3 {[%clk 0:01:43]}  Rc8 {[%clk 0:02:16]} 15. dxc5 {[%clk 0:01:31]}  Bxc5 {[%clk 0:01:55]} 16. Qf5 {[%clk 0:01:16]}  d4 {[%clk 0:01:45]} 17. Rd1 {[%clk 0:01:03]}  d3 {[%clk 0:01:19]} 18. Ne5 {[%clk 0:00:48]}  Ne7 {[%clk 0:01:07]} 19. Qh3 {[%clk 0:00:41]}  Ng6 {[%clk 0:00:44]} 20. Nxd3 {[%clk 0:00:27]}  Bxd3 {[%clk 0:00:41]} 21. Bg5 {[%clk 0:00:18]}  Be7 {[%clk 0:00:37]} 22. Rac1 {[%clk 0:00:13]}  Ne5 {[%clk 0:00:28]} 23. e4 {[%clk 0:00:11]}  Nfg4 {[%clk 0:00:17]} 24. Bxe7 {[%clk 0:00:10]}  Qxe7 {[%clk 0:00:18]} 25. f3 {[%clk 0:00:09]}  Qc5+ {[%clk 0:00:18]} 0-1


[Site "https://www.chess.com"]